bitfinex/quotes_SOLUSD_20240814
["timestamp","ask_amount","ask_price","bid_price","bid_amount"]
[1723663918275,19.8024,144.46,144.42,13.5014]
[1723663918276,12.88,144.46,144.42,13.5014]
[1723663918675,19.8023,144.46,144.42,13.5014]
[1723663919504,19.8023,144.46,144.42,6.5773]
[1723663919707,6.9232,144.44,144.41,16.2859]
[1723663919879,6.9237,144.43,144.41,16.2859]
[1723663920085,6.9234,144.44,144.41,16.2859]
[1723663920305,32.27,144.46,144.43,45.0]
[1723663920602,26.9229,144.45,144.41,16.2859]
[1723663920794,6.9234,144.44,144.39,13.1276]
[1723663920996,6.9237,144.43,144.39,13.1276]
[1723663921189,6.9237,144.43,144.39,6.202]
[1723663921394,6.9243,144.42,144.38,15.8408]
[1723663921595,6.9243,144.42,144.38,22.7668]
[1723663921797,20.0,144.45,144.39,6.9255]
[1723663921996,6.9233,144.44,144.39,6.9255]
[1723663922201,26.9229,144.45,144.4,6.9251]
[1723663922609,26.9229,144.45,144.41,45.0]
[1723663925227,6.9236,144.44,144.41,45.0]
[1723663925525,6.9236,144.44,144.4,45.0]
[1723663925812,6.9238,144.43,144.4,45.0]
[1723663926109,20.0,144.45,144.39,45.0]
[1723663926110,32.27,144.44,144.39,45.0]
[1723663926411,6.9239,144.43,144.39,45.0]
[1723663926908,6.9239,144.43,144.28,40.8]
[1723663926909,0.12549,144.41,144.34,15.2918]
[1723663927111,6.9262,144.38,144.34,15.2918]
[1723663930701,6.9262,144.38,144.34,22.2198]
[1723663932432,6.9258,144.39,144.34,22.2198]
[1723663932708,6.9253,144.4,144.35,51.9275]
[1723663932911,20.0,144.39,144.35,51.9275]
[1723663933125,6.9253,144.4,144.36,6.927]
[1723663933298,6.9253,144.4,144.35,51.9274]
[1723663933710,6.9253,144.4,144.37,45.0]
[1723663934091,6.9253,144.4,144.35,51.9274]
[1723663935227,6.9248,144.41,144.35,45.0]
[1723663935395,6.9248,144.41,144.36,6.9269]
[1723663935705,6.9248,144.41,144.37,45.0]
[1723663936524,6.9248,144.41,144.37,51.9265]
[1723663936826,6.9243,144.42,144.37,51.9265]
[1723663937028,20.0,144.41,144.37,51.9265]
[1723663937395,20.0,144.41,144.38,6.926]
[1723663937695,6.9233,144.44,144.4,6.9251]
[1723663938033,6.9233,144.44,144.39,51.9253]
[1723663938315,6.9233,144.44,144.4,6.925]
[1723663938617,6.4741,144.49,144.39,45.0]
[1723663938820,406.133463,144.54,144.45,6.9227]
[1723663938821,409.6208,144.54,144.45,6.9227]
[1723663939020,6.9209,144.49,144.45,6.9227]
[1723663940101,6.9209,144.49,144.46,45.0]
[1723663940799,6.9215,144.48,144.46,45.0]
[1723663941598,6.921,144.49,144.46,45.0]
[1723663942323,6.921,144.49,144.45,51.9227]
[1723663942613,6.921,144.49,144.45,45.0]
[1723663944419,6.9214,144.48,144.43,6.9235]
[1723663944596,6.9214,144.48,144.44,45.0]
[1723663944800,6.9214,144.48,144.43,6.9235]
[1723663947137,6.921,144.49,144.44,6.9232]
[1723663947497,6.921,144.49,144.45,45.0]
[1723663948260,6.88812455,144.49,144.45,45.0]
[1723663950344,6.88812455,144.49,144.45,51.9228]
[1723663950932,22.8208,144.54,144.45,45.0]
[1723663951147,17.2953,144.55,144.44,45.25098]
[1723663951428,6.9191,144.53,144.48,6.9213]
[1723663951928,6.9191,144.53,144.46,0.12549]
[1723663951929,6.3339,144.57,144.47,16.0368]
[1723663952136,6.9183,144.55,144.5,6.9203]
[1723663953816,6.9185,144.54,144.5,6.9203]
[1723663954206,6.9181,144.55,144.5,6.9203]
[1723663954428,6.9181,144.55,144.51,45.0]
[1723663954652,6.9185,144.54,144.51,45.0]
[1723663954867,6.9185,144.54,144.49,6.9208]
[1723663955480,33.4895,144.58,144.5,45.0]
[1723663955636,0.12549,144.55,144.36,20.0]
[1723663955970,0.12549,144.55,144.34,290.17]
[1723663955971,6.9199,144.51,144.46,6.9223]
[1723663956179,6.9199,144.51,144.43,22.9534]
[1723663956180,6.9199,144.51,144.47,6.9218]
[1723663956465,6.9199,144.51,144.46,6.9222]
[1723663956937,6.9204,144.5,144.45,6.9227]
[1723663957270,6.9213,144.48,144.43,22.9534]
[1723663957589,6.9213,144.48,144.43,29.8768]
[1723663957877,6.9209,144.49,144.44,6.9232]
[1723663958036,6.9209,144.49,144.44,6.9231]
[1723663958541,6.9205,144.5,144.45,6.9227]
[1723663958863,6.9205,144.5,144.46,45.0]
[1723663960244,6.92,144.51,144.46,51.9222]
[1723663960567,6.92,144.51,144.47,6.9218]
[1723663960736,6.92,144.51,144.48,45.0]
[1723663961740,6.9195,144.52,144.48,45.0]
[1723663961946,270.7932,144.57,144.49,6.9208]
[1723663962168,17.2932,144.57,144.5,45.0]
[1723663962853,6.9189,144.53,144.5,45.0]
[1723663963231,6.9195,144.52,144.44,0.12549]
[1723663963438,6.9195,144.52,144.44,65.50196]
[1723663963837,6.9193,144.53,144.48,6.9213]
[1723663964766,6.9193,144.53,144.49,45.0]
[1723663965338,6.9193,144.53,144.49,51.9208]
[1723663965845,6.9193,144.53,144.5,45.0]
[1723663966360,6.918,144.55,144.51,6.9199]
[1723663966557,6.918,144.55,144.5,45.0]
[1723663966558,6.918,144.55,144.52,45.0]
[1723663966743,6.918,144.55,144.5,51.9202]
[1723663968349,6.918,144.55,144.51,6.9197]
[1723663968669,6.918,144.55,144.52,45.0]
[1723663972369,6.918,144.55,144.51,45.0]
[1723663973675,6.9186,144.54,144.51,45.0]
[1723663973857,6.9186,144.54,144.5,45.0]
[1723663974957,6.918,144.55,144.5,45.0]
[1723663975787,6.918,144.55,144.5,51.92]
[1723663976144,6.918,144.55,144.51,6.9197]
[1723663976375,6.918,144.55,144.5,45.0]
[1723663976376,6.9176,144.56,144.52,6.9194]
[1723663976579,6.9172,144.57,144.52,6.9194]
[1723663976786,20.0,144.56,144.52,6.9194]
[1723663977158,26.9175,144.56,144.52,6.9194]
[1723663978673,26.9175,144.56,144.51,6.9199]
[1723663978989,20.0,144.56,144.45,16.2893]
[1723663979201,6.919,144.53,144.48,6.921]
[1723663980399,17.42099,144.55,144.46,6.922]
[1723663980695,17.42099,144.55,144.43,6.5742]
[1723663980696,6.92,144.51,144.47,6.9218]
[1723663980989,20.25098,144.54,144.47,6.9218]
[1723663980990,6.9195,144.52,144.47,6.9218]
[1723663981195,20.0,144.51,144.47,6.9218]
[1723663982063,20.0,144.51,144.44,0.12549]
[1723663982257,26.9195,144.52,144.48,6.9212]
[1723663983275,26.9195,144.52,144.47,6.9217]
[1723663984178,6.92,144.51,144.46,6.9222]
[1723663984371,6.92,144.51,144.47,45.0]
[1723663984567,6.9204,144.5,144.46,6.9222]
[1723663984779,6.9209,144.49,144.44,6.9231]
[1723663985104,6.9214,144.48,144.44,6.9231]
[1723663985265,6.921,144.49,144.44,6.9231]
[1723663986489,6.9218,144.47,144.42,6.9238]
[1723663986695,39.1923,144.46,144.42,6.9238]
[1723663986897,6.9228,144.45,144.4,6.9248]
[1723663987268,6.2467,144.45,144.39,6.9255]
[1723663987469,26.9234,144.44,144.39,6.9255]
[1723663987668,6.9238,144.43,144.38,6.9261]
[1723663988334,26.9233,144.44,144.39,6.9256]
[1723663989376,6.9238,144.43,144.39,6.9256]
[1723663990302,6.9239,144.43,144.38,6.926]
[1723663991518,6.9239,144.43,144.39,6.9256]
[1723663992104,6.9239,144.43,144.38,6.926]
[1723663992311,26.9234,144.44,144.39,6.9255]
[1723663993197,6.9239,144.43,144.38,6.9257]
[1723663994526,6.9239,144.43,144.39,6.9255]
[1723663994696,20.0,144.44,144.35,0.12549]
[1723663995032,26.9229,144.45,144.4,51.925]
[1723663995338,20.0,144.45,144.41,6.9245]
[1723663995898,20.0,144.45,144.42,6.9242]
[1723663996097,32.27,144.48,144.4,45.0]
[1723663996098,6.9214,144.48,144.4,45.0]
[1723663996402,23.3769,144.5,144.45,6.9224]
[1723663996607,6.9209,144.49,144.44,6.9231]
[1723663997022,23.3766,144.5,144.45,6.9224]
[1723663998724,23.3766,144.5,144.39,15.55919]
[1723663998725,32.27,144.46,144.39,15.4337]
[1723663999130,0.12549,144.49,144.39,22.3593]
[1723663999298,20.0,144.45,144.4,6.9249]
[1723663999500,32.27,144.45,144.4,6.9249]
[1723663999723,20.0,144.44,144.4,6.9249]
[1723664003630,20.0,144.44,144.41,6.9246]
[1723664003830,6.9223,144.46,144.41,6.9246]
[1723664004137,20.0,144.45,144.41,6.9246]
[1723664005258,32.27,144.48,144.39,15.4337]
[1723664005547,20.0,144.47,144.4,45.0]
[1723664005753,16.4562,144.5,144.41,0.12549]
[1723664006050,6.9208,144.5,144.41,0.50196]
[1723664006242,6.9199,144.51,144.41,0.50196]
[1723664006447,39.1899,144.51,144.41,0.50196]
[1723664006630,6.9204,144.5,144.41,0.50196]
[1723664007231,20.0,144.49,144.41,0.50196]
[1723664007832,20.0,144.49,144.45,6.9227]
[1723664011752,6.9216,144.48,144.4,0.12549]
[1723664012653,26.921,144.49,144.44,6.9232]
[1723664013423,20.0,144.49,144.45,6.9227]
[1723664014638,20.0,144.49,144.46,6.9221]
[1723664015346,32.27,144.51,144.46,6.9221]
[1723664015663,6.9186,144.54,144.5,6.9203]
[1723664016558,32.27,144.55,144.51,6.9197]
[1723664016738,39.1875,144.57,144.52,6.9192]
[1723664017057,6.9176,144.56,144.51,6.9198]
[1723664019745,39.1871,144.57,144.53,6.9189]
[1723664019947,20.0,144.56,144.53,6.9189]
[1723664020153,20.0,144.56,144.49,21.9307]
[1723664020154,20.0,144.56,144.52,51.9193]
[1723664023062,20.0,144.56,144.52,6.9193]
[1723664023267,6.919,144.53,144.49,15.3488]
[1723664023429,6.9186,144.54,144.49,22.2696]
[1723664024033,6.9201,144.51,144.46,6.9222]
[1723664024956,17.2979,144.53,144.45,16.0042]
[1723664025139,6.921,144.49,144.45,16.0042]
[1723664025554,6.9204,144.5,144.45,22.9268]
[1723664025883,20.0,144.49,144.45,22.9268]
[1723664026953,20.0,144.49,144.46,6.9222]
[1723664027159,20.0,144.5,144.46,6.9222]
[1723664027749,6.9204,144.5,144.46,6.9222]
[1723664028544,6.919,144.53,144.48,6.9209]
[1723664029256,32.27,144.55,144.48,6.9209]
[1723664029434,6.9194,144.52,144.47,6.9217]
[1723664031584,6.9191,144.53,144.48,6.9212]
[1723664033147,17.2945,144.56,144.46,6.9218]
[1723664033353,6.9203,144.51,144.47,45.0]
[1723664033680,6.9203,144.51,144.46,6.9223]
[1723664034060,6.9204,144.5,144.46,6.9223]
[1723664034366,6.9204,144.5,144.45,22.9269]
[1723664034776,6.9209,144.49,144.45,16.0042]
[1723664035154,6.9215,144.48,144.45,16.0042]
[1723664035376,6.9222,144.47,144.42,13.3246]
[1723664035882,6.9223,144.46,144.41,22.983]
[1723664036059,6.9223,144.46,144.42,6.9242]
[1723664036260,6.9215,144.48,144.43,6.9237]
[1723664036564,20.0,144.47,144.43,6.9237]
[1723664037155,32.27,144.49,144.44,6.9232]
[1723664037156,6.9209,144.49,144.44,6.9232]
[1723664037359,20.0,144.48,144.44,6.9232]
[1723664038767,26.9213,144.48,144.43,6.9236]
[1723664039067,26.9213,144.48,144.44,45.0]
[1723664039379,20.0,144.48,144.44,51.9232]
[1723664040274,26.9214,144.48,144.44,51.9232]
[1723664040479,26.9214,144.48,144.44,45.0]
[1723664040696,6.922,144.47,144.44,45.0]
[1723664041161,6.9223,144.46,144.41,22.983]
[1723664041364,20.0,144.48,144.41,16.0585]
[1723664041675,20.37647,144.49,144.41,16.0585]
[1723664041879,6.9233,144.44,144.41,16.0585]
[1723664042264,32.27,144.46,144.41,16.0585]
[1723664042265,6.9229,144.45,144.41,16.0585]
[1723664043056,20.37647,144.49,144.41,16.0585]
[1723664043057,6.9224,144.46,144.41,22.983]
[1723664043262,20.0,144.45,144.41,22.983]
[1723664043570,26.9228,144.45,144.41,22.983]
[1723664043957,20.0,144.45,144.41,22.983]
[1723664044181,0.12549,144.49,144.41,16.0585]
[1723664044375,6.921,144.49,144.45,6.9227]
[1723664044571,6.921,144.49,144.44,6.9231]
[1723664045084,53.71112643,144.53,144.42,45.25098]
[1723664045085,6.922,144.47,144.42,45.12549]
[1723664045378,6.922,144.47,144.42,51.9238]
[1723664045581,6.9214,144.48,144.43,6.9236]
[1723664045883,6.9214,144.48,144.44,45.0]
[1723664046883,6.9214,144.48,144.44,51.9232]
[1723664047455,6.921,144.49,144.45,6.9227]
[1723664047687,6.921,144.49,144.44,51.9231]
[1723664047883,6.9215,144.48,144.44,51.9231]
[1723664048585,6.9215,144.48,144.44,45.0]
[1723664048788,32.27,144.5,144.41,16.18399]
[1723664049087,19.96812907,144.52,144.42,6.9241]
[1723664049088,6.9219,144.47,144.42,6.9241]
[1723664049577,6.9215,144.48,144.41,16.0585]
[1723664049788,17.3003,144.51,144.42,6.9241]
[1723664049963,6.922,144.47,144.42,6.9241]
[1723664050290,6.9224,144.46,144.42,6.9241]
[1723664051267,6.9219,144.47,144.42,6.9241]
[1723664051790,6.9217,144.48,144.43,51.9236]
[1723664051977,17.3003,144.51,144.44,6.9231]
[1723664051978,6.9212,144.49,144.44,6.9231]
[1723664052166,20.0,144.48,144.44,6.9231]
[1723664052364,20.0,144.48,144.44,13.1657]
[1723664053193,6.9199,144.51,144.46,6.9223]
[1723664054773,6.9204,144.5,144.45,51.9227]
[1723664055188,6.921,144.49,144.45,51.9227]
[1723664055392,6.9214,144.48,144.44,13.1657]
[1723664057499,6.9205,144.5,144.45,6.9227]
[1723664057804,6.9205,144.5,144.46,6.9223]
[1723664059013,6.92,144.51,144.46,6.9223]
[1723664060394,6.9193,144.53,144.48,6.921]
[1723664062197,6.9185,144.54,144.47,60.712]
[1723664062384,6.9185,144.54,144.49,6.9207]
[1723664062717,6.9185,144.54,144.49,51.9207]
[1723664063292,6.9185,144.54,144.49,6.9207]
[1723664063596,6.9191,144.53,144.49,6.9207]
[1723664064004,6.9194,144.52,144.47,60.712]
[1723664064680,6.9191,144.53,144.49,6.9208]
[1723664065918,6.9191,144.53,144.48,6.9212]
[1723664066393,6.9185,144.54,144.49,6.9208]
[1723664066578,6.919,144.53,144.49,6.9208]
[1723664067235,6.9186,144.54,144.49,6.9208]
[1723664067526,6.9189,144.53,144.49,6.9208]
[1723664067927,6.9189,144.53,144.48,6.9212]
[1723664068115,6.9189,144.53,144.49,45.0]
[1723664068316,6.9195,144.52,144.48,6.9212]
[1723664068648,0.12549,144.52,144.44,29.4236]
[1723664068935,6.921,144.49,144.44,29.4233]
[1723664069529,6.9205,144.5,144.45,6.9227]
[1723664071919,6.9209,144.49,144.44,29.4235]
[1723664072941,6.9213,144.48,144.44,22.5004]
[1723664076232,6.9205,144.5,144.44,22.5004]
[1723664076417,6.9204,144.5,144.46,6.9222]
[1723664076626,6.9204,144.5,144.45,51.9226]
[1723664076829,6.9204,144.5,144.45,45.0]
[1723664077813,6.9214,144.48,144.44,22.5004]
[1723664078007,6.9218,144.47,144.44,22.5004]
[1723664078312,6.9218,144.47,144.44,16.2578]
[1723664079640,6.9214,144.48,144.44,16.2578]
[1723664080650,6.9215,144.48,144.44,16.2578]
[1723664081826,6.9215,144.48,144.44,23.181]
[1723664083351,6.9215,144.48,144.44,16.2578]
[1723664085229,6.9219,144.47,144.44,16.2578]
[1723664085635,12.48057889,144.51,144.45,6.6376]
[1723664085815,6.9195,144.52,144.47,6.9217]
[1723664086332,12.47837553,144.55,144.5,15.9636]
[1723664086528,12.47726271,144.55,144.5,15.9636]
[1723664086824,17.2945,144.56,144.5,15.9636]
[1723664087222,6.919,144.53,144.5,15.9636]
[1723664088649,6.9181,144.55,144.5,15.9636]
[1723664088855,6.9181,144.55,144.5,22.8839]
[1723664089137,20.0,144.54,144.5,15.9636]
[1723664089347,17.2931,144.57,144.5,15.9636]
[1723664089348,20.0,144.56,144.5,15.9636]
[1723664089718,6.9193,144.53,144.5,15.9636]
[1723664091925,6.9194,144.52,144.5,15.9636]
[1723664092326,6.9199,144.51,144.5,15.9636]
[1723664092548,6.9199,144.51,144.47,15.987]
[1723664092920,6.9204,144.5,144.47,15.987]
[1723664093139,6.92,144.51,144.47,15.987]
[1723664093848,17.42089,144.55,144.47,15.987]
[1723664094027,6.9208,144.5,144.47,15.987]
[1723664101727,6.92,144.51,144.47,15.987]
[1723664101930,19.96508978,144.55,144.47,15.987]
[1723664102131,6.918,144.55,144.51,6.5546]
[1723664102447,6.9176,144.56,144.51,13.4743]
[1723664102857,6.9176,144.56,144.52,15.2379]
[1723664104774,6.9181,144.55,144.52,15.2379]
[1723664106160,6.9176,144.56,144.52,15.2379]
[1723664109157,6.9171,144.57,144.52,22.1573]
[1723664109554,6.9176,144.56,144.52,15.2379]
[1723664110379,6.918,144.55,144.52,15.2379]
[1723664111545,6.9176,144.56,144.52,15.2379]
[1723664112745,20.0,144.55,144.48,61.4684]
[1723664113376,17.54418,144.57,144.49,6.9205]
[1723664113377,6.9185,144.54,144.49,6.9205]
[1723664113887,6.918,144.55,144.5,6.9202]
[1723664114180,6.9185,144.54,144.49,6.9207]
[1723664114367,6.9191,144.53,144.48,23.3896]
[1723664114576,6.9191,144.53,144.49,45.0]
[1723664116152,6.9195,144.52,144.49,45.0]
[1723664116747,12.89,144.53,144.49,45.0]
[1723664116748,6.9204,144.5,144.49,45.0]
[1723664117258,6.9209,144.49,144.45,23.391]
[1723664117465,6.9204,144.5,144.45,23.3912]
[1723664118753,39.81,144.51,144.46,6.9223]
[1723664118956,26.92,144.51,144.45,16.4684]
[1723664119165,26.92,144.51,144.46,45.0]
[1723664119568,26.92,144.51,144.46,51.9222]
[1723664120672,6.9216,144.48,144.46,45.0]
[1723664120873,20.0,144.51,144.45,16.4684]
[1723664121094,6.9215,144.48,144.45,16.4684]
[1723664121995,6.9219,144.47,144.45,16.4684]
[1723664122560,6.9219,144.47,144.43,6.0617]
[1723664123697,0.12549,144.49,144.41,15.0518]
[1723664123864,6.9236,144.44,144.41,15.0518]
[1723664124056,0.12549,144.47,144.37,15.0518]
[1723664124484,0.12549,144.47,144.35,6.4243]
[1723664124485,6.926,144.39,144.35,6.4243]
[1723664126671,49.5487,144.44,144.35,6.4243]
[1723664126867,20.0,144.43,144.35,6.4243]
[1723664127468,6.9242,144.42,144.37,6.9264]
[1723664127864,26.9238,144.43,144.38,6.9261]
[1723664128065,6.9244,144.42,144.37,6.9265]
[1723664130065,26.9238,144.43,144.38,6.9261]
[1723664130267,20.0,144.43,144.39,6.9256]
[1723664130482,20.0,144.43,144.39,51.9256]
[1723664130781,20.0,144.43,144.36,45.0]
[1723664130782,6.51154207,144.48,144.37,0.12549]
[1723664131087,6.9223,144.46,144.42,6.9241]
[1723664131405,6.9219,144.47,144.42,6.9241]
[1723664131701,26.57378324,144.52,144.39,0.12549]
[1723664131702,6.6019,144.52,144.43,45.0]
[1723664131895,17.3005,144.51,144.4,6.4243]
[1723664132263,25.49270169,144.51,144.4,6.4243]
[1723664132690,25.49270169,144.51,144.41,45.0]
[1723664132980,6.9227,144.46,144.41,51.9246]
[1723664133705,17.3005,144.51,144.43,6.9235]
[1723664133997,40.31760925,144.55,144.41,45.0]
[1723664133998,17.2962,144.55,144.45,21.9745]
[1723664134161,17.2962,144.55,144.45,15.0518]
[1723664134162,6.9209,144.49,144.45,15.0518]
[1723664134818,6.9205,144.5,144.45,21.9745]
[1723664135670,6.92,144.51,144.46,6.9222]
[1723664135870,6.9195,144.52,144.47,6.9218]
[1723664136062,6.9195,144.52,144.48,6.4243]
[1723664138109,32.24,144.57,144.48,6.4243]
[1723664138399,17.2919,144.58,144.48,6.4243]
[1723664138613,33.0655659,144.59,144.5,6.92]
[1723664138789,33.0655659,144.59,144.49,45.12549]
[1723664138980,33.0655659,144.59,144.5,15.4933]
[1723664139182,33.0655659,144.59,144.51,51.9195]
[1723664139183,6.9176,144.56,144.51,51.9195]
[1723664139816,6.9171,144.57,144.52,6.9194]
[1723664140005,6.9171,144.57,144.53,45.0]
[1723664142410,0.8255659,144.59,144.53,45.0]
[1723664143920,6.9171,144.57,144.53,45.0]
[1723664144330,6.9171,144.57,144.5,15.4933]
[1723664144490,6.9171,144.57,144.51,45.12549]
[1723664144691,6.9166,144.58,144.51,45.0]
[1723664145098,7.7417659,144.59,144.53,6.9185]
[1723664145794,7.7417659,144.59,144.54,6.9183]
[1723664145999,7.7417659,144.59,144.55,6.4601]
[1723664146205,0.8255659,144.59,144.55,13.378]
[1723664147602,0.8255659,144.59,144.57,15.8258]
[1723664151604,7.7417659,144.59,144.57,15.8258]
[1723664153834,7.7417659,144.59,144.55,6.4601]
[1723664156060,0.8255659,144.59,144.55,6.4601]
[1723664156351,0.8255659,144.59,144.56,51.9174]
[1723664157430,0.8255659,144.59,144.57,6.9169]
[1723664157745,0.8255659,144.59,144.58,45.0]
[1723664157954,0.8255659,144.59,144.58,51.9165]
[1723664160254,0.8255659,144.59,144.58,45.0]
[1723664160455,0.8255659,144.59,144.58,51.9165]
[1723664160656,0.8255659,144.59,144.58,6.9165]
[1723664160859,0.8255659,144.59,144.55,6.4601]
[1723664160860,0.8255659,144.59,144.57,6.9169]
[1723664161067,0.8255659,144.59,144.56,6.9174]
[1723664161664,0.8255659,144.59,144.57,6.917]
[1723664161967,0.8255659,144.59,144.55,6.4601]
[1723664162167,0.8255659,144.59,144.58,6.9165]
[1723664162334,0.8255659,144.59,144.58,52.04199]
[1723664162535,0.8255659,144.59,144.58,68.15937]
[1723664162943,253.5,144.69,144.62,6.9144]
[1723664163147,6.9126,144.67,144.62,6.9144]
[1723664163356,18.01586873,144.71,144.63,45.0]
[1723664163565,32.24,144.68,144.63,45.0]
[1723664163766,6.9127,144.66,144.62,51.9146]
[1723664164471,6.9123,144.67,144.62,51.9146]
[1723664164676,6.9119,144.68,144.63,6.9138]
[1723664164844,6.9109,144.7,144.65,6.9132]
[1723664165249,6.9109,144.7,144.66,45.0]
[1723664165659,17.2715,144.75,144.66,45.0]
[1723664166043,7.7350659,144.73,144.68,6.9115]
[1723664166362,7.7350659,144.73,144.66,45.0]
[1723664166363,6.9099,144.72,144.69,45.0]
[1723664166558,0.8255659,144.73,144.69,45.0]
[1723664166761,0.8255659,144.73,144.7,6.9104]
[1723664167064,7.7349659,144.73,144.69,60.86]
[1723664167259,0.8255659,144.73,144.69,67.7712]
[1723664167569,6.91,144.72,144.69,15.86]
[1723664167768,6.9104,144.71,144.67,6.4773]
[1723664167944,0.8255659,144.73,144.65,15.3958]
[1723664167945,6.9113,144.69,144.65,15.3958]
[1723664168260,17.2753,144.72,144.65,15.3958]
[1723664168449,6.9113,144.69,144.65,15.3958]
[1723664168639,6.9118,144.68,144.65,15.3958]
[1723664169447,6.9114,144.69,144.65,15.3958]
[1723664171072,6.9114,144.69,144.66,45.0]
[1723664171272,6.9114,144.69,144.65,15.3958]
[1723664171968,6.9127,144.66,144.62,16.5852]
[1723664172166,6.9128,144.66,144.62,16.5852]
[1723664172675,32.24,144.65,144.59,6.5648]
[1723664172878,6.9142,144.63,144.59,6.5648]
[1723664173379,32.24,144.67,144.59,6.5648]
[1723664173564,20.0,144.66,144.59,6.5648]
[1723664173876,6.9132,144.65,144.6,6.9152]
[1723664174056,26.9127,144.66,144.61,45.0]
[1723664174250,17.40199,144.71,144.61,45.0]
[1723664174458,6.9108,144.7,144.65,6.9131]
[1723664174771,6.9113,144.69,144.66,45.0]
[1723664174956,0.8255659,144.73,144.63,16.5852]
[1723664175150,0.8255659,144.73,144.64,45.0]
[1723664175357,6.9114,144.69,144.64,51.9135]
[1723664176353,6.9118,144.68,144.64,45.0]
[1723664176551,6.9119,144.68,144.63,23.4992]
[1723664176768,6.9123,144.67,144.64,45.0]
[1723664176974,6.9127,144.66,144.63,16.5852]
[1723664177280,6.9124,144.67,144.63,16.5852]
[1723664177453,32.24,144.69,144.6,6.9156]
[1723664177454,6.9133,144.65,144.6,6.9156]
[1723664177654,6.9133,144.65,144.61,45.0]
[1723664177876,6.9133,144.65,144.6,6.9156]
[1723664178382,6.9133,144.65,144.61,51.9151]
[1723664178574,6.9128,144.66,144.61,51.9151]
[1723664179174,6.9124,144.67,144.62,6.9145]
[1723664179368,6.9119,144.68,144.63,51.914]
[1723664179573,6.9119,144.68,144.63,6.914]
[1723664179765,6.9119,144.68,144.64,45.0]
[1723664180768,6.9123,144.67,144.64,45.0]
[1723664181976,50.38479,144.71,144.61,6.915]
[1723664182276,20.25098,144.7,144.62,6.9145]
[1723664182658,20.25098,144.7,144.59,22.4233]
[1723664182659,0.25098,144.69,144.59,22.4233]
[1723664182871,6.9137,144.64,144.59,29.3392]
[1723664183385,0.12549,144.67,144.59,29.3393]
[1723664183571,6.9142,144.63,144.59,22.4233]
[1723664183770,6.9142,144.63,144.59,29.3393]
[1723664183978,6.9138,144.64,144.59,29.3393]
[1723664184473,6.9142,144.63,144.59,22.4233]
[1723664184675,6.9142,144.63,144.59,29.3392]
[1723664184869,6.9147,144.62,144.59,22.4233]
[1723664185078,0.12549,144.67,144.59,15.8585]
[1723664185079,6.9152,144.61,144.59,15.8585]
[1723664185281,17.2828,144.66,144.55,6.2927]
[1723664185282,32.24,144.62,144.55,21.9659]
[1723664185468,6.9171,144.57,144.55,21.9659]
[1723664185784,6.9167,144.58,144.55,15.6732]
[1723664187782,49.5301,144.6,144.52,6.2927]
[1723664188085,20.0,144.59,144.51,15.6732]
[1723664188261,6.9176,144.56,144.51,22.5927]
[1723664189485,6.9171,144.57,144.52,6.9194]